bitfinex-derivatives/quotes_BTCF0:USTF0_20251209
["timestamp","ask_amount","ask_price","bid_price","bid_amount"]
[1765317495030,1.1280898,92758.0,92757.0,0.05794258]
[1765317495326,0.34994,92763.0,92762.0,0.3431092]
[1765317495528,0.34994,92763.0,92762.0,0.37216244]
[1765317495925,0.001,92770.0,92762.0,0.71427324]
[1765317496130,0.0107787,92768.0,92767.0,0.68522]
[1765317496328,0.42,92768.0,92767.0,0.71427324]
[1765317497030,1.11731,92768.0,92767.0,0.71427324]
[1765317497420,1.3261,92768.0,92767.0,0.02905324]
[1765317498431,1.3281,92768.0,92767.0,0.02905324]
[1765317500917,1.11931,92768.0,92767.0,0.71777204]
[1765317501133,1.11931,92768.0,92767.0,0.02905324]
[1765317501520,1.11931,92768.0,92767.0,0.70699324]
[1765317502024,1.11931,92768.0,92767.0,0.02905324]
[1765317504226,0.422,92768.0,92767.0,0.71777204]
[1765317504430,0.422,92768.0,92767.0,0.02905324]
[1765317504431,0.76908,92768.0,92767.0,0.02905324]
[1765317504628,1.05908,92768.0,92767.0,0.02905324]
[1765317505130,1.41988,92768.0,92767.0,0.02905324]
[1765317505431,1.05908,92768.0,92767.0,0.02905324]
[1765317509926,1.05908,92768.0,92754.0,0.3608]
[1765317509927,0.0107792,92763.0,92754.0,0.3608]
[1765317510129,0.67708,92754.0,92753.0,0.00016169]
[1765317510425,1.06708,92754.0,92753.0,0.00016169]
[1765317510821,0.6878615,92744.0,92743.0,0.3608]
[1765317511025,1.0678615,92744.0,92743.0,0.3608]
[1765317511237,0.6878625,92735.0,92734.0,0.7074]
[1765317511428,1.1178625,92735.0,92734.0,0.3608]
[1765317512340,0.7978625,92735.0,92734.0,0.3608]
[1765317512532,1.0478625,92735.0,92734.0,0.3608]
[1765317512732,1.0478625,92735.0,92734.0,1.03874]
[1765317513043,1.0478625,92735.0,92734.0,0.3608]
[1765317513230,0.6878635,92726.0,92725.0,0.00016169]
[1765317513429,1.0978635,92726.0,92725.0,0.00016169]
[1765317513633,1.0978635,92726.0,92713.0,0.07629263]
[1765317513634,0.6878653,92711.0,92710.0,0.07629263]
[1765317513933,0.6878663,92702.0,92701.0,0.07629263]
[1765317514235,0.3607863,92702.0,92701.0,0.67794]
[1765317514435,1.0378663,92702.0,92701.0,0.67794]
[1765317514831,0.687867,92697.0,92696.0,0.67794]
[1765317515137,1.047867,92697.0,92696.0,1.03874]
[1765317515532,0.83708,92697.0,92696.0,1.03874]
[1765317515841,1.04708,92697.0,92696.0,1.03874]
[1765317517036,1.04708,92697.0,92696.0,1.07734227]
[1765317517236,1.04708,92697.0,92696.0,1.03974]
[1765317517435,0.6878663,92703.0,92702.0,0.3466]
[1765317517638,1.1078663,92703.0,92702.0,0.3466]
[1765317519131,0.67708,92699.0,92698.0,0.37553458]
[1765317519326,1.08708,92699.0,92698.0,0.67794]
[1765317519727,0.6878668,92698.0,92697.0,0.02893458]
[1765317520036,0.88605,92697.0,92696.0,0.3608]
[1765317520230,1.29605,92697.0,92696.0,0.3608]
[1765317520431,1.29605,92697.0,92696.0,0.7074]
[1765317521132,1.08708,92697.0,92696.0,1.03874]
[1765317521334,1.29605,92697.0,92696.0,1.03974]
[1765317521642,1.29605,92697.0,92696.0,1.04074]
[1765317521839,1.29605,92697.0,92696.0,0.70880294]
[1765317521840,1.08708,92697.0,92696.0,0.70880294]
[1765317522038,1.08708,92697.0,92638.0,0.0107937]
[1765317522039,0.81393,92675.0,92674.0,0.02893458]
[1765317522239,0.67708,92661.0,92660.0,0.0107912]
[1765317524347,7.562e-05,92675.0,92674.0,0.67894]
[1765317524548,0.19007562,92675.0,92674.0,0.67894]
[1765317524848,1.04715562,92675.0,92674.0,0.67994]
[1765317525540,0.67715562,92675.0,92674.0,0.6907296]
[1765317525743,0.81715562,92675.0,92674.0,0.6907296]
[1765317526647,0.81715562,92675.0,92674.0,0.6897296]
[1765317526846,0.81715562,92675.0,92674.0,0.6887296]
[1765317527044,0.81715562,92675.0,92674.0,0.6897296]
[1765317527045,7.562e-05,92675.0,92674.0,0.6897296]
[1765317527235,7.562e-05,92675.0,92674.0,1.5951696]
[1765317527739,7.562e-05,92675.0,92674.0,1.5941696]
[1765317528044,7.562e-05,92675.0,92674.0,2.11410418]
[1765317528234,0.00016188,92684.0,92683.0,0.6887285]
[1765317528435,0.00016188,92684.0,92683.0,1.4103285]
[1765317529144,0.3608,92702.0,92683.0,1.4103285]
[1765317529145,0.3608,92702.0,92701.0,0.6935865]
[1765317529345,1.05586,92715.0,92714.0,0.33991]
[1765317529539,1.25586,92715.0,92714.0,0.67611]
[1765317529742,1.46591718,92715.0,92714.0,0.33991]
[1765317530051,1.47670198,92715.0,92714.0,0.33991]
[1765317530251,1.15670198,92715.0,92714.0,0.67611]
[1765317530748,0.36096179,92724.0,92723.0,0.6868939]
[1765317530749,0.00016179,92724.0,92723.0,0.6868939]
[1765317531047,0.00016179,92724.0,92723.0,1.1923739]
[1765317531243,0.00016179,92724.0,92723.0,1.1926539]
[1765317531438,0.21151,92752.0,92744.0,0.0107814]
[1765317531750,0.60151,92752.0,92729.0,0.0288049]
[1765317531953,0.60151,92752.0,92735.0,0.67611]
[1765317532148,0.69506,92747.0,92742.0,0.0107816]
[1765317532341,0.69506,92743.0,92742.0,0.33991]
[1765317532540,0.3546618,92742.0,92741.0,0.33991]
[1765317532739,0.7058424,92736.0,92735.0,0.00016179]
[1765317532941,1.2076224,92736.0,92735.0,0.00016179]
[1765317533152,1.2076224,92736.0,92735.0,0.36096179]
[1765317533650,0.002,92743.0,92735.0,0.36096179]
[1765317533651,0.002,92743.0,92742.0,0.67611]
[1765317533850,0.63388,92743.0,92742.0,0.67611]
[1765317534245,0.35388,92743.0,92742.0,0.67611]
[1765317534554,0.69388,92743.0,92742.0,0.67611]
[1765317534751,0.69388,92743.0,92739.0,0.010782]
[1765317534752,0.69506,92737.0,92736.0,0.3608]
[1765317535052,1.04506,92737.0,92736.0,0.3608]
[1765317535243,1.04506,92737.0,92736.0,0.729401]
[1765317535444,0.47388,92737.0,92736.0,1.065601]
[1765317535648,0.71388,92737.0,92736.0,1.065601]
[1765317535950,0.69506,92737.0,92736.0,1.065601]
[1765317536147,1.11506,92737.0,92736.0,1.065601]
[1765317536853,0.86506,92737.0,92736.0,1.066601]
[1765317537451,1.11506,92737.0,92736.0,0.390491]
[1765317537643,1.11506,92737.0,92736.0,0.3618]
[1765317538749,1.04506,92737.0,92736.0,0.3618]
[1765317539055,0.99506,92737.0,92736.0,0.3279]
[1765317541162,0.99506,92737.0,92716.0,0.0288049]
[1765317541163,0.7058446,92717.0,92716.0,0.0288049]
[1765317541451,1.1358446,92717.0,92716.0,0.0284494]
[1765317541655,0.0107841,92721.0,92719.0,0.20408]
[1765317541852,0.0107841,92721.0,92720.0,0.70456427]
[1765317542047,0.7154638,92724.0,92723.0,0.67611]
[1765317542351,1.4366438,92724.0,92723.0,0.70456813]
[1765317542754,0.0807838,92724.0,92723.0,0.70456813]
[1765317543150,0.4107838,92724.0,92723.0,0.70456813]
[1765317543351,0.4107838,92724.0,92723.0,0.70556813]
[1765317544158,0.4117838,92724.0,92723.0,0.70556813]
[1765317544347,0.0117838,92724.0,92723.0,0.70556813]
[1765317544549,1.0568438,92724.0,92723.0,0.70556813]
[1765317544750,1.0558438,92724.0,92723.0,0.02845813]
[1765317544950,0.7368438,92724.0,92723.0,0.02845813]
[1765317545258,0.7368438,92724.0,92723.0,0.36836813]
[1765317545449,0.7358438,92724.0,92723.0,0.70456813]
[1765317545644,0.7058438,92724.0,92723.0,0.70456813]
[1765317545850,0.3546638,92724.0,92723.0,0.70456813]
[1765317546049,0.0107838,92724.0,92723.0,0.70456813]
[1765317546252,0.0107838,92724.0,92723.0,0.70556813]
[1765317546452,0.3546638,92724.0,92723.0,0.70556813]
[1765317546647,0.7058438,92724.0,92723.0,0.02945813]
[1765317546847,1.0558438,92724.0,92723.0,0.02945813]
[1765317547063,1.0558438,92724.0,92723.0,0.001]
[1765317547249,0.7058448,92715.0,92714.0,0.00016179]
[1765317547558,1.1158448,92715.0,92714.0,0.02861971]
[1765317548560,1.0715448,92715.0,92714.0,0.02861971]
[1765317548759,1.0725448,92715.0,92714.0,0.02861971]
[1765317549253,1.0725448,92715.0,92714.0,0.70472971]
[1765317549254,1.0823296,92715.0,92714.0,0.70472971]
[1765317549447,1.0823296,92715.0,92714.0,0.02861971]
[1765317549648,0.67047,92703.0,92702.0,0.0288049]
[1765317549960,0.67047,92703.0,92696.0,1e-08]
[1765317549961,0.65485,92697.0,92696.0,1e-08]
[1765317550158,1.03485,92697.0,92696.0,1e-08]
[1765317550460,1.03485,92697.0,92670.0,0.07629263]
[1765317550461,0.6656394,92676.0,92669.0,0.3729649]
[1765317550649,1.4064394,92676.0,92669.0,0.0288049]
[1765317550965,1.4064394,92676.0,92667.0,0.35696]
[1765317550966,0.65485,92668.0,92667.0,0.35696]
[1765317551265,0.00016179,92685.0,92668.0,0.70825]
[1765317551462,0.6656396,92674.0,92673.0,0.35696]
[1765317551763,0.36090963,92674.0,92673.0,0.70825]
[1765317551965,0.00010963,92674.0,92673.0,0.70825]
[1765317553749,0.00110963,92674.0,92673.0,0.70825]
[1765317553955,0.00110963,92674.0,92673.0,1.21389]
[1765317554151,0.00110963,92674.0,92673.0,1.60249227]
[1765317554355,0.00110963,92674.0,92673.0,1.25249227]
[1765317554665,0.00110963,92674.0,92673.0,1.21389]
[1765317555165,0.00110963,92674.0,92673.0,1.21489]
[1765317555359,0.00010963,92674.0,92673.0,1.21589]
[1765317555955,0.32836963,92674.0,92673.0,1.21581]
[1765317556154,0.00010963,92674.0,92673.0,1.21581]
[1765317557473,0.00010963,92674.0,92673.0,1.21577]
[1765317558264,0.00010963,92674.0,92673.0,1.21477]
[1765317558467,0.00010963,92674.0,92673.0,1.21377]
[1765317558668,0.00010963,92674.0,92673.0,1.21477]
[1765317560860,0.36096179,92685.0,92684.0,0.7105884]
[1765317561165,0.32016179,92685.0,92684.0,0.7105884]
[1765317561359,0.09016179,92685.0,92684.0,0.7105884]
[1765317562062,0.24016179,92685.0,92684.0,0.7145884]
[1765317562755,0.24016179,92685.0,92684.0,0.7125884]
[1765317562955,0.24116179,92685.0,92684.0,0.7125884]
[1765317563256,0.01116179,92685.0,92684.0,0.7125884]
[1765317563965,0.01116179,92685.0,92684.0,0.7105884]
[1765317564167,0.01216179,92685.0,92684.0,0.7105884]
[1765317564362,0.38216179,92685.0,92684.0,0.7105884]
[1765317564663,0.38216179,92685.0,92684.0,1.2159884]
[1765317564664,0.13216179,92685.0,92684.0,1.2159884]
[1765317565069,0.13116179,92685.0,92684.0,1.2159884]
[1765317565367,0.13216179,92685.0,92684.0,1.2159884]
[1765317566070,0.13116179,92685.0,92684.0,1.2159884]
[1765317566273,0.13216179,92685.0,92684.0,1.24490525]
[1765317566873,0.00216179,92685.0,92684.0,1.2159884]
[1765317567380,1.0578062,92703.0,92702.0,0.6998]
[1765317567569,1.0678062,92703.0,92702.0,0.6998]
[1765317567774,0.7278362,92703.0,92702.0,0.6998]
[1765317567966,0.68622,92701.0,92700.0,0.02895277]
[1765317568172,1.03622,92701.0,92700.0,0.53435277]
[1765317568567,1.03622,92701.0,92700.0,0.5054]
[1765317568970,1.03622,92701.0,92700.0,0.5064]
[1765317569166,1.03622,92701.0,92700.0,0.001]
[1765317569370,1.03622,92701.0,92700.0,0.002]
[1765317570270,1.03622,92701.0,92691.0,0.00016179]
[1765317570271,0.6970075,92692.0,92691.0,0.00016179]
[1765317570570,1.4078075,92692.0,92691.0,0.00016179]
[1765317571377,1.4578075,92692.0,92691.0,0.00016179]
[1765317571772,1.4608075,92692.0,92691.0,0.00016179]
[1765317572775,1.4628075,92692.0,92691.0,0.00016179]
[1765317572979,1.4628075,92692.0,92691.0,0.34581179]
[1765317573575,1.4628075,92692.0,92691.0,0.00016179]
[1765317573776,1.4628075,92692.0,92650.0,0.09536579]
[1765317573777,0.6970092,92677.0,92675.0,0.02895277]
[1765317574080,0.68622,92673.0,92672.0,0.02895277]
[1765317574272,0.68622,92673.0,92665.0,0.50647916]
[1765317574273,0.6970103,92668.0,92667.0,0.73840369]
[1765317574579,1.1170103,92668.0,92667.0,0.6998]
[1765317574778,1.1170103,92668.0,92667.0,0.73847556]
[1765317575167,1.1170103,92668.0,92667.0,0.6998]
[1765317575369,0.0107903,92668.0,92667.0,0.6998]
[1765317575567,0.0107903,92668.0,92667.0,0.7008]
[1765317575777,0.01079,92671.0,92670.0,0.7105898]
[1765317575975,0.0107897,92674.0,92673.0,0.7105897]
[1765317576178,0.00016179,92677.0,92676.0,0.6998]
[1765317577480,0.19116179,92677.0,92676.0,0.6998]
[1765317577680,0.00116179,92677.0,92676.0,0.6998]
[1765317578683,0.35741179,92677.0,92676.0,0.6998]
[1765317579083,0.00116179,92677.0,92676.0,0.6998]
[1765317579288,0.00116179,92677.0,92676.0,0.7008]
[1765317579880,0.00016179,92677.0,92676.0,0.7008]
[1765317580077,0.3608,92691.0,92676.0,0.6998]
[1765317580280,0.7508,92691.0,92690.0,0.96833496]
[1765317580481,0.5408,92691.0,92690.0,0.96833496]
[1765317580682,0.5408,92691.0,92690.0,0.9101977]
[1765317581685,0.5418,92691.0,92690.0,0.9101977]
[1765317581891,0.3618,92691.0,92690.0,0.9101977]
[1765317582777,0.00016179,92700.0,92699.0,0.6998]
[1765317582976,0.00016179,92700.0,92699.0,1.2052]
[1765317583777,0.3608,92710.0,92709.0,0.7105855]
[1765317584186,0.3608,92721.0,92720.0,0.7105842]
[1765317584584,0.38,92721.0,92720.0,0.7105842]
[1765317585079,0.3608,92725.0,92724.0,0.7105838]
[1765317586492,0.3618,92725.0,92724.0,0.7105838]
[1765317586789,0.3628,92725.0,92724.0,0.7105838]
[1765317587176,0.3628,92725.0,92724.0,0.7492299]
[1765317587783,0.3618,92725.0,92724.0,0.7492299]
[1765317587990,0.3628,92725.0,92724.0,0.7492299]
[1765317588193,0.7528,92725.0,92724.0,0.7105838]
[1765317588385,0.5328,92725.0,92724.0,0.7105838]
[1765317588887,0.7328,92725.0,92724.0,0.7105838]
[1765317590080,0.3628,92725.0,92724.0,0.7105838]
[1765317590491,0.5128,92725.0,92724.0,0.7105838]
[1765317590991,0.3628,92725.0,92724.0,0.7105838]
[1765317591387,0.68841,92725.0,92724.0,0.7105838]
[1765317591590,0.3628,92725.0,92724.0,0.7105838]
[1765317592490,0.3628,92725.0,92724.0,0.73952071]
[1765317593798,0.3628,92725.0,92724.0,0.7105838]
[1765317594300,1.05593,92725.0,92724.0,0.7105838]
[1765317594484,0.7228,92725.0,92724.0,0.7105838]
[1765317594691,0.002,92725.0,92724.0,0.7905838]
[1765317594988,0.002,92725.0,92724.0,1.2158238]
[1765317595393,0.0009999,92725.0,92724.0,1.2158238]
[1765317595594,0.00016179,92730.0,92729.0,0.6915432]
[1765317595783,1.05284,92745.0,92744.0,0.6915415]
[1765317595982,1.48284,92745.0,92744.0,0.6915415]
[1765317597391,1.48384,92745.0,92744.0,0.6915415]
[1765317597893,1.48484,92745.0,92744.0,0.6915415]
[1765317599185,1.48484,92745.0,92735.0,0.00016179]
[1765317599186,0.69204,92736.0,92735.0,0.00016179]
[1765317599385,0.69204,92736.0,92709.0,0.28585263]
[1765317599386,0.69204,92695.0,92694.0,8.645e-05]
[1765317599590,1.07204,92695.0,92694.0,0.08008645]
[1765317599794,1.02204,92695.0,92694.0,0.34974645]
[1765317599996,1.02204,92695.0,92694.0,0.01008645]
[1765317600191,1.02204,92695.0,92694.0,0.33974645]
[1765317600496,0.0107847,92717.0,92696.0,0.68076]
[1765317600497,0.69204,92697.0,92696.0,0.68076]
[1765317600799,0.00016179,92704.0,92703.0,0.6915462]
[1765317600999,0.39016179,92704.0,92703.0,0.6915462]
[1765317601298,0.00016179,92704.0,92703.0,0.6915462]
[1765317601489,0.33329179,92704.0,92703.0,0.6915462]
[1765317601682,0.43329179,92704.0,92703.0,0.6915462]
[1765317601883,0.75329179,92704.0,92703.0,0.6915462]
[1765317602083,1.11409179,92704.0,92703.0,0.6915462]
[1765317602689,1.11409179,92704.0,92703.0,0.6925462]
[1765317602991,0.36096179,92704.0,92703.0,1.0925462]
[1765317603192,0.05071,92752.0,92712.0,0.0107851]
[1765317603193,0.3608,92719.0,92712.0,0.0107851]
[1765317603400,0.33313,92735.0,92734.0,0.6915426]
[1765317603696,0.5052,92753.0,92741.0,0.9011018]
[1765317603697,0.33313,92742.0,92741.0,0.9011018]
[1765317603994,0.22524523,92774.0,92759.0,0.68076]
[1765317603995,0.7028197,92760.0,92759.0,0.68076]
[1765317604194,0.3439102,92755.0,92754.0,1.18596]
[1765317604392,1.1128202,92755.0,92754.0,1.18596]
[1765317604596,0.7028202,92755.0,92754.0,0.84486]
[1765317604901,0.74204,92755.0,92754.0,0.84486]
[1765317605593,1.06204,92755.0,92754.0,0.84486]
[1765317605792,0.78204,92755.0,92754.0,1.18596]
[1765317606190,0.3608,92759.0,92758.0,0.6915398]
[1765317606385,0.004,92760.0,92758.0,0.0107798]
[1765317606589,0.004,92760.0,92759.0,1.04156]
[1765317606793,0.00016172,92769.0,92764.0,0.6915391]
[1765317607000,0.00016172,92769.0,92764.0,1.1966991]
[1765317607190,0.00016172,92769.0,92764.0,1.5966991]
[1765317607393,0.3608,92781.0,92780.0,0.6915373]
[1765317607596,0.3608,92781.0,92780.0,1.1966973]
[1765317608187,0.35970734,92781.0,92780.0,1.1966973]
[1765317608392,0.00107771,92790.0,92780.0,1.1966973]
[1765317608393,0.3608,92789.0,92788.0,0.6915363]
[1765317608596,0.3608,92789.0,92788.0,1.2866563]
[1765317608801,0.3608,92809.0,92808.0,0.901094]
[1765317608997,0.0107722,92824.0,92814.0,0.6915333]
[1765317609195,1.09107742,92815.0,92814.0,0.6915333]
[1765317610191,1.09307742,92815.0,92814.0,0.6915333]
[1765317610800,1.09307742,92815.0,92814.0,0.3504333]
[1765317611005,1.09307742,92815.0,92814.0,0.6915333]
[1765317611504,1.09507742,92815.0,92814.0,0.6925333]
[1765317612806,1.42507742,92815.0,92814.0,0.6925333]
[1765317613009,1.42507742,92815.0,92814.0,1.1975333]
[1765317613500,1.09507742,92815.0,92814.0,1.1975333]
[1765317616105,0.0107709,92835.0,92814.0,1.1975333]
[1765317616106,0.3608,92838.0,92835.0,0.0107708]
[1765317616304,0.73298,92838.0,92837.0,0.3289]
[1765317616896,0.69399,92832.0,92831.0,0.0107713]
[1765317617101,1.11399,92832.0,92831.0,0.0107713]
[1765317617410,0.69399,92830.0,92829.0,0.50492]
[1765317617606,1.10399,92830.0,92829.0,0.50492]
[1765317618008,1.10399,92830.0,92829.0,0.83382]
[1765317618508,0.69399,92828.0,92827.0,0.0001616]
[1765317618702,1.00399,92828.0,92827.0,0.0001616]
[1765317618898,1.36479,92828.0,92827.0,0.0001616]
[1765317620406,0.0107707,92837.0,92833.0,0.0107711]
[1765317620601,0.0107713,92832.0,92829.0,0.0107715]
[1765317620898,0.65972,92830.0,92829.0,0.7047215]
[1765317621104,1.00972,92830.0,92829.0,0.7047215]
[1765317621313,0.76972,92830.0,92829.0,0.7047215]
[1765317621513,0.65972,92830.0,92829.0,0.7047215]
[1765317621805,0.3608,92836.0,92829.0,0.7047215]
[1765317621806,0.3608,92836.0,92835.0,0.7047209]
[1765317622006,1.09,92838.0,92835.0,0.7047209]
[1765317622007,1.09,92838.0,92837.0,0.69395]
[1765317622398,0.00107713,92840.0,92839.0,0.69395]
[1765317623308,0.00107713,92840.0,92839.0,1.19867]
[1765317623508,0.00107713,92840.0,92839.0,1.56147]
[1765317623717,0.00107713,92840.0,92839.0,1.56247]
[1765317625006,0.00107713,92840.0,92839.0,1.05775]
[1765317625203,0.00107713,92840.0,92839.0,1.56243]
[1765317625405,0.33147713,92840.0,92839.0,1.05775]
[1765317625613,0.00107713,92840.0,92839.0,1.56243]
[1765317625806,0.66079713,92840.0,92839.0,1.56243]
[1765317626710,2.55e-06,92841.0,92840.0,0.7047203]
[1765317626904,2.55e-06,92841.0,92840.0,1.0655203]
[1765317627499,0.65972255,92841.0,92840.0,1.5701603]
[1765317627706,0.65972255,92841.0,92840.0,1.19859]
[1765317628009,2.55e-06,92841.0,92840.0,0.50464]
[1765317628798,2.55e-06,92841.0,92840.0,0.50564]
[1765317629005,2.55e-06,92841.0,92840.0,0.50764]
[1765317630209,1.07972255,92841.0,92840.0,0.003]
[1765317630408,1.07972255,92841.0,92840.0,0.5076]
[1765317630610,1.07972255,92841.0,92840.0,0.86701]
[1765317631009,1.07972255,92841.0,92840.0,1.20155]
[1765317631409,1.07972255,92841.0,92840.0,0.003]
[1765317631710,1.44052255,92841.0,92840.0,0.003]
[1765317632617,0.65972,92840.0,92839.0,0.35941]
[1765317632913,0.36080255,92841.0,92840.0,0.69395]
[1765317633114,2.55e-06,92841.0,92840.0,0.33654]
[1765317633309,2.55e-06,92841.0,92840.0,0.862]
[1765317633510,2.55e-06,92841.0,92840.0,0.863]
[1765317633815,2.55e-06,92841.0,92840.0,0.861]
[1765317634210,2.55e-06,92841.0,92840.0,1.5826]
[1765317634411,2.55e-06,92841.0,92840.0,0.861]
[1765317634615,2.55e-06,92841.0,92840.0,1.5826]
[1765317635011,2.55e-06,92841.0,92840.0,1.1826]
[1765317635216,2.55e-06,92841.0,92840.0,1.5846]
[1765317635614,2.55e-06,92841.0,92840.0,0.863]
[1765317635825,2.55e-06,92841.0,92840.0,1.5856]
[1765317636030,2.55e-06,92841.0,92840.0,1.5876]
[1765317636331,2.55e-06,92841.0,92840.0,1.66440355]
[1765317636921,2.55e-06,92841.0,92840.0,1.5876]
[1765317638133,2.55e-06,92841.0,92840.0,1.66465688]
[1765317638332,2.55e-06,92841.0,92840.0,1.5876]
[1765317638830,0.00107684,92865.0,92840.0,1.5876]
[1765317638831,0.3304,92876.0,92875.0,0.69395]
[1765317639021,0.0107643,92892.0,92888.0,0.0107647]
[1765317639226,0.98079655,92890.0,92889.0,0.69395]
[1765317639624,0.65972,92888.0,92887.0,0.0107648]
[1765317639834,0.83972,92888.0,92887.0,0.0107648]
[1765317640024,0.83972,92888.0,92883.0,0.0107652]
[1765317640025,0.65972,92884.0,92883.0,0.0107652]
[1765317640224,0.81972,92884.0,92883.0,0.7047152]
[1765317640626,1.06972,92884.0,92883.0,0.7047152]
[1765317640831,1.0804852,92884.0,92883.0,0.7047152]
[1765317641425,1.06972,92884.0,92883.0,0.7047152]
[1765317641634,1.00972,92884.0,92883.0,0.7047152]
[1765317641826,0.65972,92876.0,92875.0,0.8746562]
[1765317642230,0.6912,92882.0,92881.0,0.7047155]
[1765317642736,1.02052,92882.0,92881.0,0.7047155]
[1765317643227,0.6932,92882.0,92881.0,0.7047155]
[1765317643837,0.5044,92905.0,92881.0,0.7047155]
[1765317643838,0.00107655,92890.0,92889.0,0.7047146]
[1765317644141,0.0107616,92916.0,92914.0,0.69395]
[1765317644339,1.78079626,92915.0,92914.0,0.69395]
[1765317644635,1.78079626,92915.0,92914.0,0.35941]
[1765317644938,0.3304,92910.0,92909.0,0.3701723]
[1765317645136,0.4111622,92910.0,92909.0,0.3701723]
[1765317645330,0.4111622,92910.0,92908.0,0.5044]
[1765317645331,0.6704823,92909.0,92908.0,0.5044]
[1765317645531,0.65972,92906.0,92905.0,0.36096151]
[1765317646134,1.08972,92906.0,92905.0,0.36096151]
[1765317646334,1.08972,92906.0,92905.0,0.72037151]
[1765317646539,0.8104827,92906.0,92905.0,1.05491151]
[1765317646942,1.0904827,92906.0,92905.0,1.05491151]
[1765317648040,1.0914827,92906.0,92905.0,0.86528151]
[1765317648241,0.66072,92906.0,92905.0,1.23545431]
[1765317649044,1.09107626,92915.0,92914.0,0.70586]
[1765317649045,0.00107626,92915.0,92914.0,0.70586]
[1765317649239,0.00107626,92915.0,92914.0,1.5817017]
[1765317649436,0.00107626,92915.0,92914.0,1.2209017]
[1765317650346,0.00107626,92915.0,92914.0,1.2229017]
[1765317650644,0.00107626,92915.0,92914.0,1.2249017]
[1765317650847,0.00107626,92915.0,92914.0,1.9465017]
[1765317651048,0.00107626,92915.0,92914.0,1.9445017]
[1765317651350,0.00107626,92915.0,92914.0,2.0265017]
[1765317651351,6e-08,92915.0,92914.0,2.0265017]
[1765317651534,6e-08,92915.0,92914.0,2.4165017]
[1765317652048,6e-08,92915.0,92914.0,2.2065017]
[1765317652437,6e-08,92915.0,92914.0,2.24488043]
[1765317653449,6e-08,92915.0,92914.0,2.2065017]
[1765317653748,6e-08,92915.0,92914.0,2.3865017]
[1765317654339,6e-08,92915.0,92914.0,2.3845017]
[1765317654545,6e-08,92915.0,92914.0,2.3865017]
[1765317655143,6e-08,92915.0,92914.0,2.3845017]
[1765317655540,6e-08,92915.0,92914.0,2.3865017]
[1765317656749,1.09,92936.0,92935.0,0.7166193]
[1765317657044,0.00107597,92940.0,92939.0,0.9154788]
[1765317657549,1.09107597,92940.0,92939.0,0.9154788]
[1765317658052,0.00107597,92940.0,92939.0,1.6380788]
[1765317658445,0.00107597,92940.0,92939.0,0.9164788]
[1765317658751,0.00107597,92940.0,92939.0,1.6390788]
[1765317658752,1.09107597,92940.0,92939.0,1.6390788]
[1765317660451,1.09107597,92940.0,92939.0,1.4402188]
[1765317660759,1.09107597,92940.0,92939.0,1.6390788]
[1765317660950,1.46107597,92940.0,92939.0,0.7236]
[1765317661154,1.46107597,92940.0,92939.0,0.50604]
[1765317661351,1.87183467,92940.0,92939.0,0.002]
[1765317661553,1.87183467,92940.0,92926.0,0.0001614]
[1765317661554,0.6692102,92927.0,92926.0,0.0001614]
[1765317661749,1.0892102,92927.0,92926.0,0.0001614]
[1765317661942,1.4892102,92927.0,92926.0,0.0001614]
[1765317662357,0.85561,92916.0,92915.0,0.0107616]
[1765317662542,0.33246,92924.0,92923.0,0.0107606]
[1765317662746,0.65845,92911.0,92910.0,0.40696]
[1765317662947,0.65845,92911.0,92910.0,0.4177222]
[1765317663148,0.32599,92911.0,92910.0,1.1235822]
[1765317663444,0.65845,92926.0,92925.0,0.0107604]
[1765317664047,0.65845,92926.0,92925.0,0.7291604]
[1765317664256,0.65845,92926.0,92925.0,1.0774204]
[1765317664560,0.65845,92926.0,92925.0,0.7291604]
[1765317664753,0.65845,92926.0,92925.0,0.7301604]
[1765317665359,0.65845,92926.0,92925.0,0.3735604]
[1765317665360,1.08945,92926.0,92925.0,0.3735604]
[1765317665557,1.08945,92926.0,92925.0,0.3628]
[1765317665749,0.65945,92926.0,92925.0,0.3628]
[1765317666644,0.98945,92926.0,92925.0,0.3628]
[1765317666850,0.66945,92926.0,92925.0,0.3608]
[1765317667054,1.03945,92926.0,92925.0,0.3608]
[1765317667555,1.03945,92926.0,92904.0,0.05781718]
[1765317667556,0.69145,92908.0,92906.0,0.02873244]
[1765317667757,0.69145,92905.0,92904.0,0.3608]
[1765317667953,1.04145,92905.0,92904.0,0.3608]
[1765317668257,0.73145,92905.0,92904.0,0.3608]
[1765317668559,1.10145,92905.0,92904.0,0.3608]
[1765317668759,1.10145,92905.0,92904.0,0.3715629]
[1765317670056,1.10145,92905.0,92904.0,0.3725629]
[1765317670646,1.10145,92905.0,92904.0,0.3735629]
[1765317671251,1.10145,92905.0,92904.0,0.3755629]
[1765317671453,1.10145,92905.0,92904.0,0.3648]
[1765317673157,1.10145,92905.0,92904.0,0.3628]
[1765317673554,1.10145,92905.0,92894.0,0.8648]
[1765317673555,0.69145,92902.0,92898.0,0.02314662]
[1765317673760,0.88861,92884.0,92883.0,0.03832623]
[1765317673956,0.7022157,92880.0,92877.0,0.03832623]
[1765317674156,0.7022157,92880.0,92872.0,0.5147666]
[1765317674157,0.69145,92873.0,92872.0,0.5147666]
[1765317674362,0.7022168,92870.0,92868.0,0.03832623]
[1765317674555,0.7022172,92867.0,92866.0,0.01067205]
[1765317674761,0.7022172,92867.0,92853.0,0.504]
[1765317674762,0.7022179,92861.0,92860.0,0.00016149]
[1765317674961,1.0622179,92861.0,92860.0,0.00016149]
[1765317675964,1.08145,92861.0,92860.0,0.00016149]
[1765317676267,0.70145,92861.0,92860.0,0.00016149]
[1765317676669,0.70145,92861.0,92860.0,0.00116149]
[1765317676857,0.70145,92861.0,92860.0,0.00216149]
[1765317677367,0.69145,92861.0,92860.0,0.00216149]
[1765317677568,0.70145,92861.0,92860.0,0.00216149]
[1765317678373,0.93145,92861.0,92860.0,0.00216149]
[1765317678562,0.70145,92861.0,92860.0,0.00216149]
[1765317678870,1.07145,92861.0,92860.0,0.00216149]
[1765317680168,1.43225,92861.0,92860.0,0.00216149]
[1765317680757,0.7114995,92847.0,92846.0,0.0107696]
[1765317680963,1.11084128,92847.0,92846.0,0.0107696]
[1765317681169,1.12161078,92847.0,92846.0,0.0107696]
[1765317681875,1.14161078,92847.0,92846.0,0.0107696]
[1765317682066,1.14161078,92847.0,92839.0,0.50412]
[1765317682067,0.7115,92844.0,92843.0,0.0107699]
[1765317682374,1.0915,92844.0,92843.0,0.0107699]